fUST/lending_fUST_20250720
["ID","MTS","AMOUNT","RATE_DAILY","PERIOD"]
[373398437,1752985844753,-3074.42669131,0.00022038,6]
[373398439,1752985844762,-457.72357652,0.00022082,2]
[373398441,1752985844771,-819.88,0.00022086,2]
[373398443,1752985844781,-460.0,0.00022087,2]
[373398445,1752985844791,-616.12,0.00022088,2]
[373398447,1752985844801,-460.0,0.00022187,2]
[373398449,1752985844810,-460.0,0.00022187,2]
[373398451,1752985844819,-349.83440971,0.00022187,2]
[373398454,1752985844836,-110.16559029,0.00022187,2]
[373398456,1752985844846,-341.55514932,0.00022254,2]
[373398458,1752985844855,-590.779261,0.00022255,2]
[373398460,1752985844867,-89.300739,0.00022255,2]
[373398462,1752985844876,-568.81,0.00022255,2]
[373398464,1752985844885,-1723.62,0.00022255,2]
[373398466,1752985844895,-854.3,0.00022258,2]
[373398468,1752985844904,-1377.04241964,0.00022262,4]
[373398471,1752985844915,-3622.95758036,0.00022262,4]
[373398473,1752985844924,-3074.42669131,0.00022279,6]
[373398475,1752985844938,-819.88,0.0002236,2]
[373398477,1752985844947,-460.0,0.00022361,2]
[373398479,1752985844957,-616.12,0.00022362,2]
[373398481,1752985844967,-500.0,0.00022394,2]
[373398482,1752985844976,-151.0,0.00022394,2]
[373398483,1752985844985,-160.13246379,0.0002241,4]
[373398484,1752985844994,-460.0,0.00022461,2]
[373398485,1752985845005,-460.0,0.00022461,2]
[373398486,1752985845014,-460.0,0.00022461,2]
[373398487,1752985845024,-3074.42669131,0.00022521,7]
[373398488,1752985845033,-680.08,0.00022529,2]
[373398489,1752985845043,-568.81,0.00022529,2]
[373398490,1752985845053,-1723.62,0.00022529,2]
[373398491,1752985845062,-854.3,0.00022532,2]
[373398492,1752985845071,-819.88,0.00022634,2]
[373398493,1752985845080,-460.0,0.00022635,2]
[373398494,1752985845089,-616.12,0.00022636,2]
[373398495,1752985845098,-500.0,0.00022668,2]
[373398496,1752985845107,-151.0,0.00022668,2]
[373398497,1752985845117,-2214.38,0.0002267,7]
[373398498,1752985845126,-647.0,0.00022709,2]
[373398499,1752985845135,-460.0,0.00022735,2]
[373398500,1752985845145,-460.0,0.00022735,2]
[373398501,1752985845154,-460.0,0.00022735,2]
[373398502,1752985845164,-508.56,0.00022738,4]
[373398503,1752985845174,-3074.42669131,0.00022762,7]
[373398504,1752985845183,-2214.38,0.0002277,4]
[373398505,1752985845193,-823.0,0.00022788,2]
[373398506,1752985845202,-680.08,0.00022803,2]
[373398508,1752985845215,-568.81,0.00022803,2]
[373398510,1752985845224,-1723.62,0.00022803,2]
[373398512,1752985845233,-854.3,0.00022806,2]
[373398514,1752985845242,-508.56,0.00022838,4]
[373398516,1752985845252,-2214.38,0.0002287,4]
[373398518,1752985845261,-819.88,0.00022908,2]
[373398520,1752985845271,-158.8080772,0.00022909,2]
[373398522,1752985845280,-616.12,0.0002291,2]
[373398524,1752985845289,-250.0,0.00022913,2]
[373398526,1752985845300,-215.0738,0.00022936,2]
[373398528,1752985845309,-508.56,0.00022938,4]
[373398530,1752985845319,-500.0,0.00022942,2]
[373398532,1752985845329,-198.0,0.00022942,2]
[373398534,1752985845338,-2214.38,0.0002297,7]
[373398536,1752985845348,-1355.54,0.00023,2]
[373398538,1752985845357,-3074.42669131,0.00023003,8]
[373398540,1752985845366,-460.0,0.00023009,2]
[373398543,1752985845377,-201.05204387,0.00023009,2]
[373398545,1752985845387,-460.0,0.00023009,2]
[373398547,1752985845396,-508.56,0.00023038,3]
[373398548,1752985845408,-2214.38,0.0002307,4]
[373398551,1752985845417,-680.08,0.00023077,2]
[373398552,1752985845426,-568.81,0.00023077,2]
[373398554,1752985845436,-1723.62,0.00023077,2]
[373398557,1752985845446,-854.3,0.0002308,2]
[373398558,1752985845455,-4449.5,0.000231,7]
[373398561,1752985845464,-1417.99,0.000231,7]
[373398562,1752985845474,-8733.06,0.000231,7]
[373398564,1752985845483,-508.56,0.00023138,2]
[373398566,1752985845493,-457.72357652,0.0002316,2]
[373398568,1752985845502,-2214.38,0.0002317,4]
[373398571,1752985845511,-819.88,0.00023182,2]
[373398572,1752985845520,-616.12,0.00023184,2]
[373398574,1752985845529,-151.610802,0.00023188,4]
[373398576,1752985845539,-66842.4,0.000232,2]
[373398578,1752985845548,-500.0,0.00023216,2]
[373398580,1752985845557,-508.56,0.00023238,3]
[373398582,1752985845566,-159.36810832,0.0002324,4]
[373398584,1752985845577,-3074.42669131,0.00023245,8]
[373398586,1752985845586,-151.610802,0.0002325,4]
[373398588,1752985845596,-2214.38,0.0002327,7]
[373398590,1752985845605,-460.0,0.00023283,2]
[373398592,1752985845615,-460.0,0.00023283,2]
[373398594,1752985845624,-508.56,0.00023338,6]
[373398596,1752985845633,-2156.0,0.00023342,2]
[373398598,1752985845642,-968.0,0.00023342,2]
[373398600,1752985845652,-407.0,0.00023342,2]
[373398602,1752985845662,-680.08,0.00023351,2]
[373398605,1752985845671,-568.81,0.00023351,2]
[373398607,1752985845681,-1723.62,0.00023351,2]
[373398608,1752985845690,-854.3,0.00023354,2]
[373398610,1752985845700,-2214.38,0.0002337,3]
[373398613,1752985845710,-1822.08350985,0.000234,2]
[373398615,1752985845719,-508.56,0.00023438,4]
[373398617,1752985845729,-819.88,0.00023456,2]
[373398618,1752985845738,-616.12,0.00023458,2]
[373398620,1752985845748,-2214.38,0.0002347,7]
[373398622,1752985845757,-500.0,0.00023473,2]
[373398625,1752985845766,-3074.42669131,0.00023486,9]
[373398627,1752985845776,-168.73243802,0.0002349,2]
[373398628,1752985845784,-43625.08340679,0.000235,4]
[373398631,1752985845797,-3543.30940378,0.000235,4]
[373398633,1752985845808,-539.84621936,0.000235,4]
[373398648,1752985845953,-19665.26526653,0.000235,4]
[373398650,1752985845964,-804.22916917,0.000235,4]
[373398652,1752985845976,-1246.50933097,0.000235,4]
[373398657,1752985846011,-460.0,0.0001787,2]
[373398659,1752985846020,-240.0,0.00020611,2]
[373398661,1752985846031,-256.57,0.00020611,2]
[373398663,1752985846040,-172.85624312,0.00020885,2]
[373398666,1752985846052,-323.71375688,0.00020885,2]
[373398668,1752985846061,-496.57,0.00021159,2]
[373398670,1752985846071,-133625.49985055,0.000235,4]
[373398673,1752985846082,-350.8164,0.000235,4]
[373398675,1752985846093,-318.70722516,0.000235,4]
[373398677,1752985846104,-8799.07659785,0.000235,4]
[373398680,1752985846116,-2507.86976919,0.000235,4]
[373398682,1752985846127,-1327.57280534,0.000235,4]
[373398704,1752985846326,-32.59332066,0.00021433,2]
[373398706,1752985846338,-463.97667934,0.00021433,2]
[373398708,1752985846347,-7469.7033501,0.00021467,2]
[373398710,1752985846356,-496.57,0.00021707,2]
[373398712,1752985846365,-496.57,0.00021981,2]
[373398714,1752985846374,-496.57,0.00022255,2]
[373398716,1752985846384,-496.57,0.00022529,2]
[373398718,1752985846393,-496.57,0.00022803,2]
[373398720,1752985846402,-1590.46997055,0.000235,4]
[373398722,1752985846413,-2839.97098146,0.000235,4]
[373398751,1752985846669,-460.0,0.0001787,2]
[373398753,1752985846678,-496.57,0.00023077,2]
[373398755,1752985846688,-496.57,0.00023351,2]
[373398757,1752985846697,-21692.18610041,0.000235,4]
[373398761,1752985846725,-15554.23422773,0.000235,4]
[373398763,1752985846737,-1621.28117356,0.000235,4]
[373398769,1752985846782,-351.59094771,0.000235,4]
[373400020,1752985867538,-300.0,0.00017869,2]
[373400021,1752985867562,-28.18892647,0.0001787,2]
[373400023,1752985963526,168.265304,0.00013699,2]
[373400025,1752986137516,150.0,0.00015215,2]
[373400026,1752986821096,2008.1504042,0.0002739,120]
[373400077,1752987031969,-184.00853,0.00016765,2]
[373400079,1752987031978,-185.26278694,0.000177,2]
[373400081,1752987031988,-185.26278694,0.000177,2]
[373400083,1752987031997,-1033.0,0.0001776,2]
[373400085,1752987032007,-640.11,0.00017761,3]
[373400087,1752987032016,-320.05,0.00017761,3]
[373400089,1752987032025,-160.03,0.00017761,3]
[373400090,1752987032035,-480.1,0.00017761,3]
[373400092,1752987032045,-300.0,0.00017767,2]
[373400095,1752987032055,-460.0,0.00017768,2]
[373400097,1752987032065,-110.99430834,0.00017768,2]
[373400672,1752987037939,-349.00569166,0.00017768,2]
[373400674,1752987037950,-460.0,0.00017768,2]
[373400676,1752987037959,-461.79428853,0.00017768,2]
[373400678,1752987037968,-460.0,0.00017768,2]
[373400680,1752987037978,-460.0,0.00017768,2]
[373400682,1752987037987,-460.0,0.00017768,2]
[373400684,1752987037996,-460.0,0.00017768,2]
[373400686,1752987038005,-460.0,0.00017768,2]
[373400688,1752987038015,-460.0,0.00017768,2]
[373400690,1752987038024,-468.35187788,0.00017768,2]
[373400692,1752987038033,-460.0,0.00017768,2]
[373400694,1752987038043,-1015.13477127,0.00017768,2]
[373400696,1752987038053,-460.0,0.00017768,2]
[373400698,1752987038063,-463.67198864,0.00017768,2]
[373400700,1752987038072,-579.59384032,0.00017768,2]
[373400702,1752987038081,-460.0,0.00017768,2]
[373400704,1752987038091,-460.0,0.00017768,2]
[373400706,1752987038100,-460.0,0.00017768,2]
[373400708,1752987038109,-461.0044925,0.00017768,2]
[373400710,1752987038118,-460.0,0.00017768,2]
[373400712,1752987038127,-460.0,0.00017768,2]
[373400714,1752987038137,-460.0,0.00017768,2]
[373400716,1752987038146,-462.36555661,0.00017768,2]
[373400718,1752987038155,-460.0,0.00017768,2]
[373400720,1752987038165,-683.29,0.00017768,2]
[373400721,1752987038174,-460.0,0.00017768,2]
[373400722,1752987038183,-401.04470229,0.00017768,2]
[373400723,1752987038192,-460.0,0.00017768,2]
[373400724,1752987038200,-460.0,0.00017768,2]
[373400725,1752987038209,-583.45920605,0.00017768,2]
[373400726,1752987038218,-460.0,0.00017768,2]
[373400727,1752987038227,-460.0,0.00017768,2]
[373400728,1752987038236,-565.22675693,0.00017768,2]
[373400729,1752987038246,-467.24358313,0.00017768,2]
[373400730,1752987038255,-460.0,0.00017768,2]
[373400731,1752987038264,-460.0,0.00017768,2]
[373400732,1752987038396,-464.15842777,0.00017768,2]
[373400733,1752987038406,-460.0,0.00017768,2]
[373400734,1752987038415,-460.0,0.00017768,2]
[373400735,1752987038425,-460.0,0.00017768,2]
[373400736,1752987038434,-460.0,0.00017768,2]
[373400737,1752987038444,-460.0,0.00017768,2]
[373400738,1752987038453,-460.0,0.00017768,2]
[373400739,1752987038463,-460.95713127,0.00017768,2]
[373400740,1752987038472,-460.0,0.00017768,2]
[373400741,1752987038481,-460.0,0.00017768,2]
[373400742,1752987038490,-590.29488476,0.00017768,2]
[373400743,1752987038500,-463.4496975,0.00017768,2]
[373400744,1752987038509,-500.0,0.00017768,2]
[373400745,1752987038518,-177.5161566,0.00017768,2]
[373400746,1752987038528,-627.04866703,0.00017768,2]
[373400748,1752987038537,-449.82119996,0.00017768,2]
[373400750,1752987038548,-460.0,0.00017768,2]
[373400752,1752987038557,-460.0,0.00017769,2]
[373400754,1752987038566,-460.0,0.00017769,2]
[373400756,1752987038576,-1006.04128985,0.00017769,2]
[373400758,1752987038585,-460.0,0.00017769,2]
[373400760,1752987038595,-332.23547338,0.00017769,2]
[373400762,1752987038604,-460.0,0.00017769,2]
[373400764,1752987038615,-455.35306929,0.00017769,2]
[373400766,1752987038624,-463.82141936,0.00017769,2]
[373400768,1752987038633,-462.82370838,0.00017769,2]
[373400770,1752987038643,-462.71932507,0.00017769,2]
[373400772,1752987038657,-460.0,0.00017769,2]
[373400774,1752987038666,-464.75292804,0.00017769,2]
[373400776,1752987038675,-500.0,0.00017769,2]
[373400778,1752987038685,-520.28874856,0.00017769,2]
[373400780,1752987038695,-460.0,0.00017769,2]
[373400782,1752987038705,-460.0,0.00017769,2]
[373400784,1752987038714,-460.0,0.00017769,2]
[373400786,1752987038723,-475.07366021,0.00017769,2]
[373400788,1752987038732,-460.0,0.00017769,2]
[373400790,1752987038742,-475.28278986,0.00017769,2]
[373400792,1752987038751,-462.92167506,0.00017769,2]
[373400794,1752987038761,-460.0,0.00017769,2]
[373400796,1752987038770,-460.0,0.00017769,2]
[373400798,1752987038780,-460.0,0.00017769,2]
[373400800,1752987038790,-460.0,0.00017769,2]
[373400802,1752987038800,-462.2672064,0.00017769,2]
[373400804,1752987038809,-460.0,0.00017769,2]
[373400806,1752987038818,-462.53713076,0.00017769,2]
[373400808,1752987038828,-460.0,0.00017769,2]
[373400810,1752987038837,-464.48636648,0.00017769,2]
[373400812,1752987038849,-460.0,0.00017769,2]
[373400814,1752987038858,-460.0,0.00017769,2]
[373400816,1752987038868,-464.79784972,0.00017769,2]
[373400818,1752987038877,-460.0,0.00017769,2]
[373400820,1752987038887,-460.0,0.00017769,2]
[373400822,1752987038896,-460.0,0.00017769,2]
[373400824,1752987038906,-460.0,0.00017769,2]
[373400826,1752987038915,-460.0,0.00017769,2]
[373400828,1752987038925,-461.91978592,0.00017769,2]
[373400830,1752987038934,-1203.39,0.00017769,2]
[373400832,1752987038943,-466.20701381,0.00017769,2]
[373400834,1752987038952,-460.0,0.00017769,2]
[373400836,1752987038961,-460.0,0.00017769,2]
[373400838,1752987038970,-460.0,0.00017769,2]
[373400840,1752987038979,-460.0,0.00017769,2]
[373400842,1752987038989,-460.0,0.00017769,2]
[373400844,1752987038999,-460.0,0.00017769,2]
[373400846,1752987039007,-460.0,0.00017769,2]
[373400848,1752987039017,-1010.28,0.00017769,2]
[373400850,1752987039026,-463.08784742,0.00017769,2]
[373400853,1752987039035,-460.0,0.00017769,2]
[373400855,1752987039046,-517.86457051,0.00017769,2]
[373400856,1752987039055,-460.0,0.00017769,2]
[373400858,1752987039064,-460.0,0.00017769,2]
[373400860,1752987039073,-460.0,0.00017769,2]
[373400863,1752987039083,-460.67616531,0.00017769,2]
[373400865,1752987039092,-460.0,0.00017769,2]
[373400866,1752987039104,-460.0,0.00017769,2]
[373400868,1752987039113,-460.0,0.00017769,2]
[373400871,1752987039124,-460.0,0.00017769,2]
[373400873,1752987039134,-460.0,0.00017769,2]
[373400875,1752987039143,-460.0,0.00017769,2]
[373400877,1752987039152,-460.0,0.00017769,2]
[373400879,1752987039162,-460.0,0.00017769,2]
[373400881,1752987039172,-460.0,0.00017769,2]
[373400883,1752987039181,-460.0,0.00017769,2]
[373400885,1752987039191,-460.0,0.00017769,2]
[373400887,1752987039200,-460.0,0.00017769,2]
[373400889,1752987039209,-460.0,0.00017769,2]
[373400891,1752987039218,-287.76531157,0.00017769,2]
[373400893,1752987039227,-2038.2,0.00017769,2]
[373400895,1752987039236,-376.24303439,0.00017769,2]
[373400897,1752987039246,-460.0,0.00017769,2]
[373400898,1752987039256,-460.0,0.00017769,2]
[373400900,1752987039265,-460.0,0.00017769,2]
[373400902,1752987039275,-460.0,0.00017769,2]
[373400905,1752987039285,-461.40191087,0.00017769,2]
[373400906,1752987039295,-460.0,0.00017769,2]
[373400908,1752987039304,-467.43794708,0.00017769,2]
[373400910,1752987039313,-460.0,0.00017769,2]
[373400912,1752987039323,-460.0,0.00017769,2]
[373400914,1752987039332,-460.0,0.00017769,2]
[373400916,1752987039342,-460.0,0.00017769,2]
[373400918,1752987039351,-460.0,0.00017769,2]
[373400921,1752987039361,-460.0,0.00017769,2]
[373400922,1752987039371,-460.0,0.00017769,2]
[373400924,1752987039381,-460.0,0.00017769,2]
[373400926,1752987039390,-464.58615465,0.00017769,2]
[373400928,1752987039400,-460.0,0.00017769,2]
[373400930,1752987039409,-460.0,0.00017769,2]
[373400932,1752987039419,-460.0,0.00017769,2]
[373400934,1752987039428,-460.0,0.00017769,2]
[373400936,1752987039437,-460.0,0.00017769,2]
[373400938,1752987039447,-460.0,0.00017769,2]
[373400940,1752987039456,-460.0,0.00017769,2]
[373400942,1752987039466,-460.0,0.00017769,2]
[373400946,1752987039476,-460.0,0.00017769,2]
[373400950,1752987039485,-460.0,0.0001777,2]
[373400952,1752987039495,-460.0,0.0001777,2]
[373400954,1752987039504,-460.0,0.0001777,2]
[373400956,1752987039513,-460.43013092,0.0001777,2]
[373400958,1752987039523,-460.0,0.0001777,2]
[373400960,1752987039532,-505.09698341,0.0001777,2]
[373400962,1752987039542,-460.0,0.0001777,2]
[373400964,1752987039551,-460.0,0.0001777,2]
[373400966,1752987039560,-460.0,0.0001777,2]
[373400968,1752987039570,-460.0,0.0001777,2]
[373400970,1752987039580,-460.0,0.0001777,2]
[373400972,1752987039589,-460.0,0.0001777,2]
[373400974,1752987039599,-461.18291536,0.0001777,2]
[373400976,1752987039608,-460.0,0.0001777,2]
[373400978,1752987039618,-460.0,0.0001777,2]
[373400980,1752987039627,-460.0,0.0001777,2]
[373400982,1752987039637,-461.01274665,0.0001777,2]
[373400984,1752987039646,-460.0,0.0001777,2]
[373400986,1752987039659,-461.74376058,0.0001777,2]
[373400988,1752987039669,-460.0,0.0001777,2]
[373400990,1752987039679,-460.0,0.0001777,2]
[373400992,1752987039688,-460.0,0.0001777,2]
[373400994,1752987039698,-268.31091259,0.0001777,2]
[373400996,1752987039707,-460.0,0.0001777,2]
[373400998,1752987039716,-460.0,0.0001777,2]
[373401000,1752987039726,-502.58106593,0.0001777,2]
[373401002,1752987039735,-341.40142005,0.0001777,2]
[373401004,1752987039744,-460.0,0.0001777,2]
[373401006,1752987039753,-463.73422717,0.0001777,2]
[373401008,1752987039763,-460.0,0.0001777,2]
[373401010,1752987039772,-210.78235737,0.0001777,2]
[373401012,1752987039781,-460.0,0.0001777,2]
[373401014,1752987039791,-462.37227873,0.0001777,2]
[373401016,1752987039800,-584.30089158,0.0001777,2]
[373401018,1752987039809,-463.03956493,0.0001777,2]
[373401020,1752987039819,-460.0,0.0001777,2]
[373401022,1752987039828,-460.0,0.0001777,2]
[373401024,1752987039838,-461.80990544,0.0001777,2]
[373401026,1752987039847,-460.0,0.0001777,2]
[373401028,1752987039857,-461.66446139,0.0001777,2]
[373401030,1752987039866,-460.0,0.0001777,2]
[373401032,1752987039875,-463.11317575,0.0001777,2]
[373401034,1752987039884,-460.0,0.0001777,2]
[373401036,1752987039894,-460.0,0.0001777,2]
[373401038,1752987039904,-460.0,0.0001777,2]
[373401040,1752987039914,-465.63112996,0.0001777,2]
[373401042,1752987039923,-464.09468327,0.0001777,2]
[373401044,1752987039933,-460.0,0.0001777,2]
[373401046,1752987039942,-460.0,0.0001777,2]
[373401048,1752987039951,-380.00000001,0.0001777,2]
[373401050,1752987039960,-460.0,0.0001777,2]
[373401052,1752987039969,-460.0,0.0001777,2]
[373401054,1752987039978,-460.0,0.0001777,2]
[373401056,1752987039988,-500.0,0.0001777,2]
[373401058,1752987039997,-500.0,0.0001777,2]
[373401060,1752987040006,-500.0,0.0001777,2]
[373401062,1752987040016,-500.0,0.0001777,2]
[373401064,1752987040026,-500.0,0.0001777,2]
[373401066,1752987040035,-260.0,0.0001777,2]
[373401068,1752987040046,-460.0,0.0001777,2]
[373401070,1752987040055,-460.0,0.0001777,2]
[373401072,1752987040065,-500.0,0.0001777,2]
[373401074,1752987040075,-500.0,0.0001777,2]
[373401076,1752987040084,-500.0,0.0001777,2]
[373401078,1752987040094,-500.0,0.0001777,2]
[373401080,1752987040104,-500.0,0.0001777,2]
[373401082,1752987040115,-500.0,0.0001777,2]
[373401084,1752987040127,-500.0,0.0001777,2]
[373401086,1752987040136,-500.0,0.0001777,2]
[373401088,1752987040145,-460.0,0.0001777,2]
[373401090,1752987040155,-460.0,0.0001777,2]
[373401092,1752987040164,-460.0,0.0001777,2]
[373401094,1752987040173,-460.0,0.0001777,2]
[373401096,1752987040183,-460.0,0.0001777,2]
[373401099,1752987040192,-460.0,0.0001777,2]
[373401100,1752987040202,-460.0,0.0001777,2]
[373401103,1752987040211,-326.48630309,0.0001777,2]
[373401105,1752987040220,-460.0,0.0001777,2]
[373401107,1752987040230,-460.0,0.0001777,2]
[373401109,1752987040239,-460.0,0.0001777,2]
[373401111,1752987040248,-389.5,0.0001777,2]
[373401113,1752987040257,-460.0,0.0001777,2]
[373401115,1752987040267,-460.0,0.0001777,2]
[373401117,1752987040276,-460.0,0.0001777,2]
[373401119,1752987040285,-460.0,0.0001777,2]
[373401121,1752987040295,-460.0,0.0001777,2]
[373401123,1752987040303,-460.0,0.0001777,2]
[373401125,1752987040312,-460.0,0.0001777,2]
[373401127,1752987040322,-460.0,0.0001777,2]
[373401128,1752987040331,-460.0,0.0001777,2]
[373401130,1752987040341,-460.0,0.0001777,2]
[373401132,1752987040351,-460.0,0.0001777,2]
[373401134,1752987040360,-460.0,0.0001777,2]
[373401136,1752987040369,-460.0,0.0001777,2]
[373401138,1752987040379,-460.0,0.0001777,2]
[373401140,1752987040389,-460.0,0.0001777,2]
[373401142,1752987040398,-502.94281649,0.0001777,2]
[373401144,1752987040408,-462.40752101,0.0001777,2]
[373401146,1752987040418,-460.0,0.0001777,2]
[373401148,1752987040427,-460.0,0.0001777,2]
[373401150,1752987040436,-460.0,0.0001777,2]
[373401152,1752987040445,-460.0,0.0001777,2]
[373401154,1752987040454,-462.85288859,0.0001777,2]
[373401156,1752987040463,-460.0,0.0001777,2]
[373401158,1752987040473,-460.0,0.0001777,2]
[373401160,1752987040482,-460.0,0.0001777,2]
[373401162,1752987040491,-460.0,0.0001777,2]
[373401164,1752987040500,-460.0,0.0001777,2]
[373401166,1752987040510,-461.94570617,0.0001777,2]
[373401168,1752987040518,-460.0,0.0001777,2]
[373401170,1752987040528,-460.0,0.0001777,2]
[373401172,1752987040537,-460.0,0.0001777,2]
[373401174,1752987040548,-460.0,0.0001777,2]
[373401176,1752987040557,-460.0,0.0001777,2]
[373401178,1752987040567,-481.72,0.0001777,2]
[373401180,1752987040576,-460.0,0.0001777,2]
[373401182,1752987040585,-460.0,0.0001777,2]
[373401184,1752987040594,-460.0,0.0001777,2]
[373401186,1752987040603,-460.0,0.0001777,2]
[373401188,1752987040612,-460.0,0.0001777,2]
[373401190,1752987040623,-460.0,0.0001777,2]
[373401192,1752987040632,-460.0,0.0001777,2]
[373401194,1752987040641,-460.0,0.0001777,2]
[373401196,1752987040654,-460.0,0.0001777,2]
[373401198,1752987040663,-460.0,0.0001777,2]
[373401200,1752987040672,-460.0,0.0001777,2]
[373401201,1752987040681,-460.0,0.0001777,2]
[373401203,1752987040690,-751.53,0.0001777,2]
[373401205,1752987040701,-1208.10059977,0.0001777,2]
[373401207,1752987040711,-460.0,0.0001777,2]
[373401209,1752987040720,-460.0,0.0001777,2]
[373401211,1752987040731,-829.01185327,0.0001777,2]
[373401213,1752987040740,-460.0,0.0001777,2]
[373401215,1752987040749,-461.39501885,0.0001777,2]
[373401217,1752987040759,-460.0,0.0001777,2]
[373401219,1752987040768,-460.0,0.0001777,2]
[373401221,1752987040778,-460.0,0.0001777,2]
[373401223,1752987040787,-460.0,0.0001777,2]
[373401225,1752987040796,-460.0,0.0001777,2]
[373401227,1752987040805,-460.0,0.0001777,2]
[373401229,1752987040814,-460.0,0.0001777,2]
[373401231,1752987040823,-489.91129485,0.0001777,2]
[373401233,1752987040832,-460.0,0.0001777,2]
[373401235,1752987040843,-206.14,0.0001777,2]
[373401237,1752987040852,-460.0,0.0001777,2]
[373401239,1752987040861,-460.0,0.0001777,2]
[373401241,1752987040871,-460.0,0.0001777,2]
[373401243,1752987040880,-409.33475438,0.0001777,2]
[373401245,1752987040889,-460.0,0.0001777,2]
[373401247,1752987040899,-460.0,0.0001777,2]
[373401249,1752987040909,-460.0,0.0001777,2]
[373401251,1752987040918,-1399.65,0.0001777,2]
[373401253,1752987040928,-460.0,0.0001777,2]
[373401255,1752987040938,-460.0,0.0001777,2]
[373401257,1752987040947,-460.0,0.0001777,2]
[373401270,1752987041063,-405.45942984,0.0001777,2]
[373401272,1752987041073,-460.0,0.0001777,2]
[373401274,1752987041083,-460.0,0.0001777,2]
[373401276,1752987041093,-460.0,0.0001777,2]
[373401278,1752987041103,-537.09545503,0.0001777,2]
[373401280,1752987041113,-460.0,0.0001777,2]
[373401282,1752987041122,-460.0,0.0001777,2]
[373401284,1752987041132,-460.0,0.0001777,2]
[373401286,1752987041142,-460.0,0.0001777,2]
[373401288,1752987041151,-464.38634809,0.0001777,2]
[373401290,1752987041160,-460.0,0.0001777,2]
[373401292,1752987041170,-460.0,0.0001777,2]
[373401294,1752987041181,-460.0,0.0001777,2]
[373401296,1752987041191,-460.0,0.0001777,2]
[373401298,1752987041201,-741.24,0.0001777,2]
[373401300,1752987041211,-460.0,0.0001777,2]
[373401302,1752987041221,-450.84372897,0.0001777,2]
[373401304,1752987041232,-460.0,0.0001777,2]
[373401306,1752987041241,-505.48432054,0.0001777,2]
[373401308,1752987041250,-370000.0,0.00017771,2]
[373401310,1752987041260,-500.0,0.00017773,2]
[373401312,1752987041270,-500.0,0.00017773,2]
[373401314,1752987041280,-502.25707875,0.00017773,2]
[373401316,1752987041289,-500.0,0.00017773,2]
[373401318,1752987041299,-460.0,0.0001787,2]
[373401320,1752987041308,-463.03886414,0.0001787,2]
[373401322,1752987041318,-460.0,0.0001787,2]
[373401324,1752987041327,-463.19997479,0.0001787,2]
[373401326,1752987041336,-460.0,0.0001787,2]
[373401328,1752987041346,-163.23242119,0.0001787,2]
[373401330,1752987041355,-460.0,0.0001787,2]
[373401331,1752987041363,-460.69275463,0.0001787,2]
[373401333,1752987041373,-314.23696453,0.0001787,2]
[373401335,1752987041382,-460.0,0.0001787,2]
[373401337,1752987041391,-460.0,0.0001787,2]
[373401339,1752987041400,-362.23609815,0.0001787,2]
[373401341,1752987041409,-460.0,0.0001787,2]